[Event "Oceania Zonal Open 2023"]
[Site "Melbourne"]
[Date "2023.01.24"]
[Round "3.4"]
[White "Testolin, Ryder"]
[Black "Lane, Gary W"]
[Result "0-1"]
[ECO "D20"]
[WhiteElo "2012"]
[BlackElo "2343"]
[Annotator "TA"]
[PlyCount "141"]
[EventDate "2023.01.09"]
[EventType "swiss"]
[EventCountry "AUS"]
[SourceTitle "playchess.com"]
[Source "ChessBase"]
[SourceQuality "1"]
[TimeControl "5400+30"]

{[%evp 10,141,36,31,28,35,29,41,41,39,39,24,40,33,33,33,50,40,27,34,20,0,3,-14,0,-47,0,-19,-7,-10,0,0,0,0,0,0,0,0,0,0,0,0,0,0,0,0,0,0,0,-9,0,-76,-53,-68,-78,-87,-31,-30,-40,-41,-59,-95,-94,-167,-147,-125,-53,-56,-54,-47,0,-48,0,-56,-48,-138,-54,-55,-59,-587,-587,-587,-587,-587,-587,-587,-587,-1267,-1191,-947,-773,-692,-195,-195,-195,-475,-425,-270,-244,-1670,-1656,-1506,-1270,-29973,-29974,-29973,-29975,-29975,-29976,-29976,-29976,-29976,-29977,-29977,-29978,-29979,-29978,-29978,-29978,-29978,-29979,-29977,-29976,-29980,-29979,-29980,-29981,-29981,-29982,-29985,-29986,-29989,-29990,-29992]} 1. d4 {[%emt 0:00:03]} d5 {[%emt 0:00:03]} 2. c4 {[%emt 0:00:09]} dxc4 {[%emt 0:00:10]} 3. e4 {[%emt 0:00:12]} e5 {[%emt 0:00:33]} 4. Nf3 {[%emt 0:00:20]} exd4 {[%emt 0:00:16]} 5. Bxc4 {[%emt 0:00:40]} Nc6 {[%emt 0:00:23]} 6. O-O {[%emt 0:01:09]} Bc5 {[%emt 0:00:27] D20: Queen's Gambit Accepted: 3 e3 and 3 e4.} 7. Ng5 {[%emt 0:09:30]} Nh6 {[%emt 0:03:14] [#]} 8. Nxf7 $1 {[%emt 0:01:40][%mdl 64] Decoy} Nxf7 {[%emt 0:00:07] White is slightly better.} 9. Bxf7+ {[%emt 0:00:15]} Kxf7 {[%emt 0:00:05]} 10. Qh5+ {[%emt 0:00:12]} g6 {[%emt 0:00:10]} 11. Qxc5 {[%emt 0:00:14]} Re8 {[%emt 0:00:03]} 12. Bg5 {[%emt 0:15:10]} Qd6 {[%emt 0:20:22]} 13. Qxd6 {[%emt 0:05:48]} cxd6 {[%emt 0:00:06]} 14. Nd2 {[%emt 0:00:19]} Be6 {[%emt 0:05:26] [#]} 15. a3 $146 {[%emt 0:20:25]} ({Predecessor:} 15. Rfd1 d5 16. Nb3 dxe4 17. Nxd4 Nxd4 18. Rxd4 Bf5 19. h3 h5 20. Rad1 Rac8 21. Ra4 {½-½ Ding,L (2799)-Mamedyarov,S (2765) Speed Chess Chess.com INT blitz 2021 (1.15)}) 15... Rac8 {[%emt 0:09:51]} 16. b4 {[%emt 0:11:25] White is weak on the light squares} Ne5 {[%emt 0:06:49]} 17. f4 {[%emt 0:03:40]} (17. Rfd1 $11) 17... Ng4 {[%emt 0:08:07]} (17... Nc4 $1 $15 18. Rf2 (18. f5 Bd7 $15) 18... d3) 18. h3 {[%emt 0:09:47]} Ne3 {[%emt 0:02:03]} 19. Rf2 {[%emt 0:00:10]} Rc2 {[%emt 0:22:13]} 20. Nf3 {[%emt 0:01:58]} Rec8 {[%emt 0:02:09]} 21. Nxd4 {[%emt 0:03:48]} Rc1+ {[%emt 0:02:24]} 22. Rxc1 {[%emt 0:00:02]} Rxc1+ {[%emt 0:00:04]} 23. Kh2 {[%emt 0:00:14]} Nf1+ {[%emt 0:02:38]} 24. Kg1 {[%emt 0:00:01]} Ng3+ {[%emt 0:00:17]} 25. Kh2 {[%emt 0:00:08]} Nxe4 {[%emt 0:01:20]} 26. Re2 {[%emt 0:01:49]} Nxg5 {[%emt 0:01:55]} 27. fxg5 $11 {[%emt 0:00:02][%mdl 4096] Endgame KRB-KRN} Bd7 {[%emt 0:00:18]} 28. Rf2+ {[%emt 0:00:49]} Ke7 {[%emt 0:01:57]} 29. Kg3 {[%emt 0:01:08]} Rd1 {[%emt 0:01:13]} 30. Nc2 {[%emt 0:02:37]} (30. Rf4 $11 {remains equal.}) 30... Bc6 {[%emt 0:04:05]} 31. Kf4 {[%emt 0:00:52]} Rd3 {[%emt 0:00:18]} 32. h4 {[%emt 0:05:25]} Ba4 {[%emt 0:02:27] Black is more active.} (32... Kd7 $17) 33. Ke4 {[%emt 0:00:12]} Rc3 {[%emt 0:03:11]} 34. Ne3 {[%emt 0:00:18]} Bc6+ {[%emt 0:00:04]} 35. Kd4 {[%emt 0:02:13]} Rxa3 {[%emt 0:00:06]} 36. b5 {[%emt 0:00:30]} Ra4+ $19 {[%emt 0:00:54][%mdl 64] Skewer} (36... Bxb5 37. Nd5+ Kd8 38. Rf8+ Kd7 39. Rf7+ Ke6 40. Rf6+ (40. Re7+ Kf5 $11) 40... Kd7 41. Rf7+ Kc8 42. Rf8+ Kd7 43. Rf7+ $11) 37. Kc3 {[%emt 0:00:02]} Be4 {[%emt 0:01:08]} ({Better is} 37... Bxb5 $17 38. Nd5+ Kd7 39. Nf6+ Kc6) 38. Rf4 $15 {[%emt 0:02:06]} Ke6 {[%emt 0:00:55]} 39. Rf6+ {[%emt 0:00:08]} Ke7 {[%emt 0:00:31]} 40. Rf4 {[%emt 0:00:22]} Ke6 {[%emt 0:01:05] Strongly threatening ...d5.} 41. Rf6+ {[%emt 0:00:01]} Ke5 $1 {[%emt 0:00:43]} 42. Kb3 {[%emt 0:03:09] [#] Dodges Ra3+} ({White should play} 42. Nc4+ $15 Kd5 43. Nxd6 (43. Rxd6+ $2 {loses.} Kc5 $19)) 42... Rd4 {[%emt 0:00:18]} (42... Ra1 $1 $17 {Threatens to win with ...d5.} 43. Nc4+ Kd4 44. Rxd6+ Bd5) 43. Nc4+ {[%emt 0:00:15]} Kd5 {[%emt 0:00:11]} 44. Rxd6+ $2 {[%emt 0:00:33][%mdl 8192] Loses the game.} ({White must play} 44. Nxd6 $15 Bxg2 {[%mdl 64] Discovered Attack} 45. Nxb7) 44... Kc5 $19 {[%emt 0:00:04]} 45. Rxd4 {[%emt 0:00:12]} Kxd4 {[%emt 0:00:01] KB-KN} 46. Nd6 {[%emt 0:00:12][%cal Ob5b6]} Bxg2 {[%emt 0:00:14]} 47. Ne8 {[%emt 0:00:27][%cal Ob5b6]} Ke5 {[%emt 0:00:08]} 48. Nf6 {[%emt 0:00:22]} h5 {[%emt 0:00:10] aiming for ...Kf4.} 49. Kc4 {[%emt 0:01:44]} Kf4 {[%emt 0:00:11] ...Kg3 would be deadly.} 50. Kd4 {[%emt 0:01:40]} Kg3 $2 {[%emt 0:01:25]} (50... a5 {...a4 is the strong threat.} 51. bxa6 bxa6) 51. Nxh5+ {[%emt 0:00:43]} Kg4 $1 {[%emt 0:02:22]} ({Not} 51... gxh5 52. g6 Bh3 53. Ke5 $11 (53. b6 axb6 54. Ke5 Bf1 $19)) 52. Ng7 {[%emt 0:00:48]} (52. Nf6+ {only move.} Kxh4 53. Nh7) 52... Kxh4 {[%emt 0:00:14]} 53. Ne6 {[%emt 0:00:02]} Bf1 {[%emt 0:00:47]} 54. Nd8 $2 {[%emt 0:00:13]} (54. Kc5) 54... b6 {[%emt 0:00:24]} 55. Nc6 {[%emt 0:00:02]} Bxb5 {[%emt 0:00:02]} ({Weaker is} 55... Kxg5 56. Nxa7 Kf4 57. Nc8 $17) 56. Nxa7 {[%emt 0:00:16]} Bd7 {[%emt 0:00:03] Black mates.} 57. Ke5 {[%emt 0:00:17]} Kxg5 {[%emt 0:00:38]} 58. Kd6 {[%emt 0:00:02]} Ba4 {[%emt 0:00:39]} 59. Ke5 {[%emt 0:01:06]} Kg4 {[%emt 0:00:29]} 60. Nc8 {[%emt 0:00:09]} b5 {[%emt 0:00:07]} 61. Nb6 {[%emt 0:00:30]} g5 {[%emt 0:01:09][%cal Bg6g5,Bg5g4,Bg4g3,Bg3g2][%mdl 32]} 62. Ke4 {[%emt 0:00:10]} Bc2+ {[%emt 0:00:21]} 63. Ke3 {[%emt 0:00:11]} Kg3 {[%emt 0:00:18]} 64. Nd5 {[%emt 0:00:12]} g4 {[%emt 0:00:32]} 65. Ke2 {[%emt 0:00:09]} Be4 {[%emt 0:00:54]} 66. Nc3 {[%emt 0:00:12]} Bc6 {[%emt 0:00:05]} 67. Ke3 {[%emt 0:00:48]} Kh2 {[%emt 0:00:27]} 68. Ne2 {[%emt 0:00:08]} g3 {[%emt 0:00:07]} 69. Kd4 {[%emt 0:00:53]} g2 {[%emt 0:00:12]} 70. Kc5 {[%emt 0:00:14]} Bf3 {[%emt 0:00:29]} 71. Kd4 {[%emt 0:01:17] Weighted Error Value: White=0.56/Black=0.25 (precise)} 0-1

[Event "Oceania Zonal Open 2023"]
[Site "Melbourne"]
[Date "2023.01.24"]
[Round "3.5"]
[White "Liu, Yi"]
[Black "Rodgers, Jack"]
[Result "1-0"]
[ECO "D00"]
[WhiteElo "2303"]
[BlackElo "2034"]
[Annotator "TA"]
[PlyCount "125"]
[EventDate "2023.01.09"]
[EventType "swiss"]
[EventCountry "AUS"]
[SourceTitle "playchess.com"]
[Source "ChessBase"]
[SourceQuality "1"]
[TimeControl "5400+30"]

{[%evp 9,125,2,-2,-18,20,16,22,18,21,17,20,19,47,30,29,-8,101,93,99,106,83,20,78,75,80,85,79,60,66,74,95,-242,-235,-235,-220,-296,75,87,96,109,105,105,118,53,68,63,84,67,65,66,131,150,149,66,60,61,73,62,72,76,137,135,144,47,126,96,108,102,103,104,85,88,115,110,109,112,135,149,208,202,187,199,231,227,204,172,262,80,158,151,158,158,531,586,555,561,462,533,551,526,1197,1178,1035,1006,5065,4584,3614,3003,4339,1862,29964,29954,29986,29987,29990,29991,29991,29990]} 1. d4 {[%emt 0:00:23]} Nf6 {[%emt 0:02:29]} 2. Nc3 {[%emt 0:01:04]} d5 {[%emt 0:00:16]} 3. Bf4 {[%emt 0:00:11]} a6 {[%emt 0:00:03]} 4. e3 {[%emt 0:00:05]} e6 {[%emt 0:00:15]} 5. g4 {[%emt 0:00:06]} Bb4 {[%emt 0:00:36]} 6. Nge2 {[%emt 0:00:57][%cal Bg1e2,Be2c3,Bc3d5,Bd5c7][%mdl 32] D00: 1 d4 d5: Unusual lines.} Ne4 {[%emt 0:09:27][%cal Oe6e5]} 7. a3 {[%emt 0:06:45] [#]} Qh4 $146 {[%emt 0:05:28][%csl Ge4][%cal Rh4f2]} ({Predecessor:} 7... Nxc3 8. Nxc3 Be7 9. Qf3 c5 10. dxc5 Bxc5 11. g5 Nc6 12. O-O-O Qa5 13. Nb1 Be7 {0-1 Radojicic,A (2112)-Sahin,O (2269) Belgrade Serbia op 2021 (2)}) 8. Bg3 {[%emt 0:04:09] The position is equal.} Nxg3 {[%emt 0:04:04]} (8... Bxc3+ {simplifies} 9. Nxc3 Nxg3 10. fxg3 Qd8) 9. fxg3 {[%emt 0:00:22]} Bxc3+ {[%emt 0:00:08]} 10. Nxc3 {[%emt 0:00:50]} Qg5 {[%emt 0:00:58]} 11. Qf3 {[%emt 0:02:27]} O-O {[%emt 0:04:28]} 12. Bd3 {[%emt 0:09:11]} e5 {[%emt 0:09:46]} (12... c6 $11) 13. Nxd5 $16 {[%emt 0:01:20] Strongly threatening Qe4.} Nc6 {[%emt 0:07:55]} 14. h3 {[%emt 0:10:34]} (14. Nxc7 $6 Bxg4 15. Qe4 f5 16. Bc4+ Kh8 $11) (14. Qe4 f5 15. Qg2 fxg4 $14) 14... exd4 {[%emt 0:07:52]} 15. O-O {[%emt 0:03:50]} (15. Nxc7 $2 {too greedy.} Qa5+ 16. Kf1 Qxc7 $19) (15. O-O-O $1 $16) 15... Ne5 {[%emt 0:06:47]} (15... Qe5 $1 $11) 16. Qf4 {[%emt 0:15:30]} Qxf4 {[%emt 0:00:47]} 17. exf4 {[%emt 0:02:02]} Nxd3 {[%emt 0:00:31]} 18. Nxc7 {[%emt 0:00:52]} Rb8 {[%emt 0:07:41]} 19. cxd3 {[%emt 0:00:21]} Bd7 {[%emt 0:01:05]} 20. f5 $2 {[%emt 0:14:10][%mdl 8192]} (20. Nd5 $16 {stays on course.}) 20... Bc6 $19 {[%emt 0:02:26]} 21. Rae1 {[%emt 0:01:21]} Rfd8 {[%emt 0:06:28]} 22. f6 {[%emt 0:06:28]} gxf6 {[%emt 0:04:21]} (22... Rbc8 $19 23. Re7 Kf8 24. Nxa6 gxf6) 23. Rxf6 $16 {[%emt 0:00:23]} Rd7 {[%emt 0:03:08] Inhibits Re7.} 24. Ne8 {[%emt 0:02:21][%cal Of6c6] Rxc6! would be deadly.} Kf8 {[%emt 0:02:02]} 25. Nd6 $36 {[%emt 0:00:09][%mdl 2048] Black is under strong pressure.} Rbd8 {[%emt 0:00:34]} 26. Nf5 {[%emt 0:02:08] White has more active pieces.} (26. Nc4 $16) 26... Bb5 $14 {[%emt 0:01:11]} 27. Rd1 {[%emt 0:00:58]} Rc8 $1 {[%emt 0:01:11]} 28. Nd6 {[%emt 0:13:59]} Rc6 {[%emt 0:02:13]} 29. Ne4 {[%emt 0:00:05]} Rxf6 {[%emt 0:00:48]} ({Better is} 29... Rc2 $14) 30. Nxf6 {[%emt 0:00:01][%mdl 4096] Endgame KRB-KRN} Rc7 {[%emt 0:00:30]} 31. Ne4 {[%emt 0:02:10]} (31. Nxh7+ $16 Ke7 32. h4) 31... Rc2 {[%emt 0:01:21]} 32. Rd2 $1 {[%emt 0:00:01]} Rc1+ {[%emt 0:01:01]} 33. Kg2 {[%emt 0:00:55]} Re1 {[%emt 0:00:34]} 34. Kf3 {[%emt 0:00:41]} Bc6 {[%emt 0:02:38]} (34... Rf1+ $142 35. Rf2 Re1) 35. Kf4 $16 {[%emt 0:00:23]} Re3 {[%emt 0:01:28]} 36. h4 {[%emt 0:00:42]} (36. g5 $1 $16) 36... Ke7 {[%emt 0:01:02]} (36... h6 $1 $14) 37. h5 {[%emt 0:00:06]} f6 {[%emt 0:00:42]} 38. g5 $1 {[%emt 0:00:15]} fxg5+ {[%emt 0:00:55][%mdl 64] Remove Defender} 39. Nxg5 {[%emt 0:00:02]} h6 {[%emt 0:00:21]} 40. Ne4 {[%emt 0:00:06]} Bb5 {[%emt 0:00:48] [#]} 41. Nf2 $1 {[%emt 0:01:37]} Bc6 {[%emt 0:00:41]} 42. g4 {[%emt 0:00:19]} Ke6 {[%emt 0:00:33][%csl Gc6][%cal Re3f3]} 43. Ne4 {[%emt 0:00:14]} Re1 {[%emt 0:00:39] [#]} (43... a5 $16 44. Rc2 Bxe4 45. dxe4 Re1) 44. Ng3 $1 $18 {[%emt 0:01:16] And now Re2+ would win.} Kf6 {[%emt 0:00:51]} 45. Re2 {[%emt 0:00:37] Wards off Re3} Rd1 {[%emt 0:00:26]} 46. Ne4+ {[%emt 0:00:18]} Bxe4 {[%emt 0:01:38]} 47. Kxe4 {[%emt 0:00:10] KR-KR} ({And not} 47. dxe4 Rf1+ 48. Kg3 Ke5 $15) 47... Rg1 {[%emt 0:00:11]} (47... Kg5 $142) 48. Kf4 $2 {[%emt 0:00:36]} (48. Kxd4 $18 {has better winning chances. Hoping for Kc5.} Rxg4+ 49. Kc5) 48... Rd1 {[%emt 0:00:21]} ({Black should play} 48... Rf1+ 49. Ke4 Kg5) 49. Rf2 $16 {[%emt 0:00:33]} Rg1 {[%emt 0:00:26]} 50. a4 {[%emt 0:00:24]} b6 $2 {[%emt 0:00:50]} (50... Ra1 $16 {is a better chance.} 51. b3 Re1) 51. Rc2 $18 {[%emt 0:00:36]} Rf1+ {[%emt 0:00:45]} 52. Ke4 {[%emt 0:00:45]} Kg5 {[%emt 0:00:31]} 53. Rc6 {[%emt 0:00:21]} ({Not} 53. Kxd4 Kxg4 54. Rc6 Kxh5 55. Rxb6 a5 $16) 53... Rf4+ {[%emt 0:00:15]} 54. Ke5 {[%emt 0:00:27] Rg6+ would kill now.} Rxg4 {[%emt 0:00:34]} 55. Rxb6 {[%emt 0:00:08] aiming for Rg6+.} Kxh5 {[%emt 0:01:28]} 56. Rxa6 {[%emt 0:00:10]} Kg5 {[%emt 0:00:25]} 57. Ra8 {[%emt 0:01:22] White wants to mate with Rg8+.} Kh4 {[%emt 0:01:00]} 58. b4 {[%emt 0:00:24] a5 is the strong threat.} h5 {[%emt 0:00:09]} 59. Rh8 {[%emt 0:00:19] Threatens to win with b5.} Kg5 {[%emt 0:00:38]} 60. a5 {[%emt 0:00:23] White mates.} Kg6 {[%emt 0:00:36]} 61. Rg8+ {[%emt 0:00:08]} Kh6 {[%emt 0:00:12]} 62. Rxg4 {[%emt 0:00:03][%mdl 64] Remove Defender} hxg4 {[%emt 0:00:04]} 63. Kf4 {[%emt 0:00:08] What a fight!   Weighted Error Value: White=0.25 (precise) /Black=0.52} 1-0

[Event "Oceania Zonal Open 2023"]
[Site "Melbourne"]
[Date "2023.01.24"]
[Round "3.6"]
[White "Archer, Ollie"]
[Black "Gong, Patrick"]
[Result "0-1"]
[ECO "E90"]
[WhiteElo "1960"]
[BlackElo "2292"]
[Annotator "TA"]
[PlyCount "144"]
[EventDate "2023.01.09"]
[EventType "swiss"]
[EventCountry "AUS"]
[SourceTitle "playchess.com"]
[Source "ChessBase"]
[SourceQuality "1"]
[TimeControl "5400+30"]

{[%evp 19,144,53,87,91,94,90,99,80,87,80,92,95,105,87,90,91,86,59,83,83,87,76,89,57,59,59,75,59,64,63,89,40,38,13,25,-3,24,0,12,-47,-14,-2,-9,-14,0,0,12,25,13,-55,0,-18,0,-30,-22,-20,-20,-31,-24,-274,-84,-565,-560,-781,-770,-756,-762,-770,-757,-704,-710,-2287,-2175,-1864,-1566,-1661,-1441,-29963,-1258,-1158,0,0,0,-1148,0,-29961,-29951,-29962,-825,-29975,-12797,-7216,-6612,-5485,-4909,-1754,-820,-799,-767,-29981,-29974,-29974,-29973,-29972,-29973,-29974,-29973,-29968,-29969,-29968,-29969,-29968,-29968,-29963,-29965,-7283,-3104,-2254,-953,-6747,-5089,-29977,-29978,-29982,-29983,-29983,-29984]} 1. d4 {[%emt 0:00:04]} Nf6 {[%emt 0:00:16]} 2. c4 {[%emt 0:00:08]} c5 {[%emt 0:00:29]} 3. d5 {[%emt 0:00:11]} d6 {[%emt 0:00:11]} 4. Nc3 {[%emt 0:00:11]} g6 {[%emt 0:00:09]} 5. Nf3 {[%emt 0:00:37]} Bg7 {[%emt 0:00:12]} 6. e4 {[%emt 0:00:13]} O-O {[%emt 0:00:08]} 7. Bd3 {[%emt 0:00:20]} e6 {[%emt 0:00:47]} 8. O-O {[%emt 0:00:25]} Na6 {[%emt 0:00:53]} 9. h3 {[%emt 0:00:57]} Nc7 {[%emt 0:00:10]} 10. Re1 {[%emt 0:01:01]} e5 {[%emt 0:00:09]} 11. a3 {[%emt 0:02:23] E90: King's Indian: Classical: Early deviations and 6 h3.} Nfe8 {[%emt 0:01:35]} 12. b4 {[%emt 0:00:33]} b6 {[%emt 0:00:11]} 13. Bg5 {[%emt 0:02:06] White is better.} f6 {[%emt 0:03:07]} 14. Bh4 {[%emt 0:00:17] [#]} Na6 $146 {[%emt 0:02:28]} ({Predecessor:} 14... g5 15. Bg3 f5 16. exf5 e4 17. Nxe4 Bxa1 18. Qxa1 Rxf5 19. Qc1 h6 20. h4 g4 {1-0 Moradiabadi,E (2542)-Finegold,B (2505) Saint Louis 2nd 2012 (1)}) 15. Rb1 {[%emt 0:02:53]} Bd7 {[%emt 0:01:08]} 16. Nh2 {[%emt 0:01:30][%cal Bf3h2,Bh2f1,Bf1e3][%mdl 32]} Qc8 {[%emt 0:01:54]} 17. g4 {[%emt 0:06:33]} Bh6 {[%emt 0:05:38]} 18. Nf1 {[%emt 0:03:10]} Rb8 {[%emt 0:01:54]} 19. b5 {[%emt 0:04:42]} Nac7 {[%emt 0:00:31]} 20. Ne3 {[%emt 0:00:20]} Ng7 {[%emt 0:01:46]} 21. Kh1 {[%emt 0:03:58]} Rf7 {[%emt 0:01:13]} 22. Rg1 {[%emt 0:02:40]} Bg5 {[%emt 0:03:16]} 23. Bg3 {[%emt 0:01:57]} h5 {[%emt 0:02:22]} 24. Bh2 {[%emt 0:00:13]} hxg4 {[%emt 0:06:07]} 25. hxg4 {[%emt 0:00:18]} (25. Nxg4 $16 {[%cal Oh3h4] Black must now prevent h4!} Rf8 26. Ne2) 25... Kf8 $14 {[%emt 0:01:24]} 26. Qf3 {[%emt 0:02:14]} Ke7 {[%emt 0:00:59]} 27. Rg2 {[%emt 0:01:08]} (27. a4 {looks sharper.} Qb7 28. Kg2 Rh8 29. Rh1) 27... a6 {[%emt 0:02:21]} 28. a4 {[%emt 0:02:47]} Qb7 {[%emt 0:01:43]} 29. Qh3 {[%emt 0:00:55]} (29. Bg3 $11) 29... Qa8 {[%emt 0:00:56][%cal Og7h5]} (29... Nh5 $5) 30. Kg1 {[%emt 0:02:52]} Rh8 {[%emt 0:02:01]} 31. Qf3 {[%emt 0:00:09]} Nge8 {[%emt 0:01:40]} 32. Kf1 {[%emt 0:01:06]} Rfh7 {[%emt 0:01:05]} 33. Bg3 {[%emt 0:02:42]} Rh3 {[%emt 0:03:33]} 34. Qe2 {[%emt 0:03:59]} (34. Be2 $11) 34... Rh1+ {[%emt 0:06:32]} 35. Rg1 {[%emt 0:00:07]} axb5 {[%emt 0:01:28]} 36. axb5 {[%emt 0:05:52]} (36. cxb5 $5 {[%cal Re3c4]} Bxe3 37. fxe3 $15) 36... Bxe3 {[%emt 0:00:46]} 37. Qxe3 {[%emt 0:01:09]} Bxg4 {[%emt 0:00:52]} 38. f4 {[%emt 0:00:36]} Qa3 {[%emt 0:01:32] Chess con chili.} 39. fxe5 $2 {[%emt 0:00:48]} dxe5 $2 {[%emt 0:01:32]} (39... Qxc3 $19 {has better winning chances.} 40. Rc1 Qb2) 40. Bxe5 $2 {[%emt 0:07:31][%mdl 8192]} fxe5 $19 {[%emt 0:04:55]} 41. Qg5+ {[%emt 0:00:26]} Kf8 {[%emt 0:01:01]} 42. Qxg4 {[%emt 0:03:35]} Qxc3 {[%emt 0:01:09]} 43. Qf3+ {[%emt 0:00:29]} Kg7 {[%emt 0:00:14]} 44. Rxh1 {[%emt 0:00:24]} Rf8 {[%emt 0:00:52]} 45. Rh7+ {[%emt 0:00:45]} Kxh7 {[%emt 0:00:08]} 46. Qxf8 {[%emt 0:00:06]} Qxd3+ {[%emt 0:00:07]} 47. Kf2 {[%emt 0:00:06]} Qxb1 {[%emt 0:00:41]} 48. Qf7+ {[%emt 0:00:06]} Kh6 {[%emt 0:05:14]} (48... Ng7 $142 49. Qxc7 Qxe4 50. Qxb6 Qd4+ 51. Kg2 Qxc4 52. Qc7 Qxd5+ 53. Kf1 Kh6 54. Qa5 c4 55. Qc3 Qxb5 56. Qh3+ Nh5 57. Qc3 Nf4 58. Ke1 Qb1+ 59. Kd2 Qd3+ 60. Qxd3 cxd3 61. Kd1 g5 62. Kd2 g4 63. Ke1 g3 64. Kd2 g2 65. Kc3 g1=Q 66. Kb4 d2 67. Ka5 d1=Q 68. Kb5 Qd8 69. Ka4 Qb8 70. Ka5 Qga7#) 49. Qf8+ {[%emt 0:00:07]} Kg5 $2 {[%emt 0:00:31]} (49... Kh5 $19 50. Qf3+ Kg5 51. Qg3+ Kf6) 50. Qe7+ $11 {[%emt 0:00:11]} Kh6 {[%emt 0:01:13]} 51. Qf8+ $1 {[%emt 0:00:59] White is now going downhill.} Kh7 {[%emt 0:00:10]} 52. Qf7+ {[%emt 0:00:14] [#]} Ng7 $1 {[%emt 0:00:25]} 53. Qxc7 {[%emt 0:00:10]} Qc2+ {[%emt 0:00:11]} (53... Qxe4 $142 54. Qxb6 Qxc4 55. d6 Qc2+ 56. Kg1 e4 57. Qa5 Qd1+ 58. Kg2 Qf3+ 59. Kg1 Qd1+ 60. Kh2 Qe2+ 61. Kh1 Qf1+ 62. Kh2 Qf2+ 63. Kh1 e3 64. d7 Nf5 65. Qc7 Ng3+ 66. Qxg3 Qxg3 67. d8=Q Qe1+ 68. Kg2 Qd2+ 69. Qxd2 exd2 70. Kf2 d1=Q 71. Kg3 Qd6+ 72. Kf3 c4 73. b6 c3 74. b7 c2 75. b8=B Qxb8 76. Ke4 c1=Q 77. Kd5 Qbc7 78. Ke4 Q7f4+ 79. Kd5 Qcc4#) 54. Kg1 {[%emt 0:03:44]} Qd1+ {[%emt 0:01:03]} (54... Qxe4 $142 55. Qe7 Kh6 56. Qf8 Qd4+ 57. Kh1 Qe4+ 58. Kg1 Qd4+ 59. Kg2 Qg4+ 60. Kh1 Qh4+ 61. Kg1 Kh7 62. Qf2 Qxf2+ 63. Kxf2 Nf5 64. Kg2 Nd6 65. Kf3 g5 66. Kg4 Kg6 67. Kg3 Kf5 68. Kh2 g4 69. Kg2 e4 70. Kg3 e3 71. Kg2 Kf4 72. Kf1 g3 73. Ke1 g2 74. Kd1 g1=Q+ 75. Kc2 e2 76. Kd3 e1=Q 77. Kc2 Qh2+ 78. Kd3 Qh7#) 55. Kf2 $19 {[%emt 0:00:23]} Qd4+ {[%emt 0:00:45]} 56. Kf3 {[%emt 0:01:00]} Qd3+ {[%emt 0:00:08]} 57. Kf2 {[%emt 0:00:09]} Qxe4 {[%emt 0:00:20]} 58. d6 {[%emt 0:00:39]} Qf4+ {[%emt 0:00:06]} 59. Kg2 {[%emt 0:00:42]} e4 {[%emt 0:00:10]} (59... Qxc4 $2 {perishes.} 60. d7 $19) 60. Qe7 {[%emt 0:00:10]} Qd2+ {[%emt 0:04:13]} 61. Kh3 {[%emt 0:01:07]} Qe3+ {[%emt 0:04:17]} 62. Kh2 {[%emt 0:01:52]} Qf2+ {[%emt 0:00:41]} 63. Kh3 {[%emt 0:00:07]} e3 {[%emt 0:01:02]} 64. d7 {[%emt 0:00:11]} e2 {[%emt 0:00:31]} 65. d8=Q {[%emt 0:00:30]} e1=Q {[%emt 0:00:25]} (65... e1=B $2 66. Qd3 $18 (66. Qxb6 $2 Qg3#)) 66. Qxe1 {[%emt 0:00:12]} Qxe1 {[%emt 0:00:10]} 67. Qxb6 {[%emt 0:00:07]} Qc3+ {[%emt 0:00:37]} 68. Kg2 {[%emt 0:00:17]} Qxc4 {[%emt 0:00:06] [#] ( -> ...Qe2+)} 69. Qc6 {[%emt 0:00:09]} Qe2+ {[%emt 0:00:37]} 70. Kh3 {[%emt 0:00:16]} Qe6+ {[%emt 0:00:31] Black mates.} 71. Qxe6 {[%emt 0:00:14]} Nxe6 {[%emt 0:00:04]} 72. b6 {[%emt 0:00:09]} Nd8 {[%emt 0:00:09] Excellently played by Gong!   Weighted Error Value: White=0.46/Black=0.44} 0-1